[Event "FIDE WY-U16 Olympiad 2022"]
[Site "Nakhchivan"]
[Date "2022.10.03"]
[Round "2.6"]
[White "Shamatava, Nikolozi"]
[Black "Karsten, Jan"]
[Result "1-0"]
[ECO "D11"]
[WhiteElo "2089"]
[BlackElo "1921"]
[Annotator "TA"]
[PlyCount "95"]
[EventDate "2022.10.02"]
[EventType "team-tourn"]
[EventCountry "AZE"]
[SourceTitle "playchess.com"]
[Source "ChessBase"]
[SourceQuality "1"]
[WhiteTeam "Georgia"]
[BlackTeam "South Africa"]
[WhiteTeamCountry "GEO"]
[BlackTeamCountry "RSA"]
[TimeControl "40/5400+30:1800+30"]

{[%evp 13,94,0,0,0,18,8,14,5,10,11,15,20,29,-10,0,0,0,-6,0,-29,-17,-18,-13,-20,-31,-31,-31,-22,129,139,145,139,402,393,389,372,392,322,495,492,645,633,651,634,597,550,569,572,789,785,846,830,910,890,1029,1054,1248,1247,2069,2151,2719,2787,2540,2528,2299,2383,29988,29989,29989,29990,29990,29988,29988,29988,29989,29990,29995,29994,29996,29997,29997,29992,29999]} 1. d4 {[%emt 0:00:03]} d5 {[%emt 0:00:09]} 2. c4 {[%emt 0:00:04]} c6 {[%emt 0:00:04]} 3. Nf3 {[%emt 0:00:03]} Nf6 {[%emt 0:00:08]} 4. Qc2 {[%emt 0:00:03]} dxc4 {[%emt 0:00:05]} 5. Qxc4 {[%emt 0:00:06]} Bf5 {[%emt 0:00:06]} 6. g3 {[%emt 0:00:09]} e6 {[%emt 0:00:07]} 7. Bg2 {[%emt 0:00:04]} Be7 {[%emt 0:00:07] is now debated instead of 7...Nbd7.} 8. O-O {[%emt 0:00:05] D23: Queen's Gambit Accepted: 3 Nf3 Nf6 sidelines.} O-O {[%emt 0:00:06]} 9. e3 {[%emt 0:00:01]} Nbd7 {[%emt 0:00:11]} 10. Rd1 {[%emt 0:00:10] The position is equal.} Rc8 {[%emt 0:01:15]} 11. Qe2 {[%emt 0:00:18]} Bg6 {[%emt 0:00:35]} 12. Nc3 {[%emt 0:03:37]} b5 {[%emt 0:00:10][%cal Bb7b5,Bb5b4][%mdl 32]} 13. Ne1 {[%emt 0:09:23]} b4 {[%emt 0:13:25]} 14. Na4 {[%emt 0:02:56]} Qa5 {[%emt 0:03:28]} 15. b3 {[%emt 0:00:12] [#]} c5 $146 {[%emt 0:20:37]} ({Predecessor:} 15... Nb6 16. Nxb6 axb6 17. e4 Rfd8 18. Bb2 Bf8 19. Nd3 c5 20. Nf4 cxd4 21. Nxg6 hxg6 22. Bxd4 {½-½ (54) Sharevich,A (2344)-Worek,J (2306) Warsaw 2011}) 16. a3 {[%emt 0:06:43]} cxd4 {[%emt 0:09:38]} 17. Rxd4 {[%emt 0:01:00]} bxa3 {[%emt 0:02:55]} 18. Bxa3 {[%emt 0:01:57]} Bxa3 {[%emt 0:01:26]} 19. Rxa3 {[%emt 0:00:01]} Rc1 {[%emt 0:01:59]} 20. b4 {[%emt 0:02:44]} Qh5 {[%emt 0:01:44]} ({Black should try} 20... Qf5 $11 21. Nc3 a5) 21. Qd2 $1 $16 {[%emt 0:01:11][%csl LRc1,LRd7]} Rc7 {[%emt 0:04:03] [#]} 22. Nc3 {[%emt 0:06:10][%cal Ba4c3,Bc3b5,Bb5d6][%mdl 32] Prevents Qb5. Threatens to win with Ra5.} Rb8 $2 {[%emt 0:08:56][%mdl 8192] A mistake that costs the game.} (22... Nb6 $16 {was worth a try.}) 23. Ra5 $18 {[%emt 0:02:40]} e5 {[%emt 0:11:16] [#]} 24. Rh4 {[%emt 0:00:14]} Qg5 {[%emt 0:00:26]} 25. Nb5 {[%emt 0:04:41]} Rcc8 {[%emt 0:02:00]} (25... Rxb5 {might work better.} 26. Rxb5 Ne8) 26. Nd6 {[%emt 0:00:53] Strongly threatening f4.} Rd8 {[%emt 0:03:55]} 27. f4 {[%emt 0:00:15]} Qxh4 {[%emt 0:00:18]} 28. gxh4 {[%emt 0:00:04]} exf4 {[%emt 0:01:22]} 29. exf4 {[%emt 0:00:48]} Nb6 {[%emt 0:00:28]} 30. f5 {[%emt 0:01:49]} Bh5 {[%emt 0:03:15]} 31. Qf4 {[%emt 0:00:38] Inhibits Nc4.} Rd7 {[%emt 0:02:52]} 32. Bc6 {[%emt 0:04:50]} Re7 {[%emt 0:02:01]} 33. Re5 {[%emt 0:01:40]} Rc7 {[%emt 0:00:33]} 34. b5 {[%emt 0:01:52]} a6 {[%emt 0:01:18]} 35. Ne4 {[%emt 0:01:16]} axb5 {[%emt 0:00:29]} 36. Rxb5 {[%emt 0:00:36][%cal Be5b5,Bb5b2,Bb2g2][%mdl 32]} Rcc8 {[%emt 0:00:47]} 37. Nxf6+ {[%emt 0:02:59]} gxf6 {[%emt 0:00:05]} 38. Rb2 {[%emt 0:00:14] White wants to mate with Rg2+.} Kh8 {[%emt 0:00:45]} 39. Rg2 {[%emt 0:00:29][%cal Of4h6] White threatens Qh6! and mate.} Rd8 {[%emt 0:00:44]} 40. Qh6 {[%emt 0:00:12][%csl LRf6,LRh5][%cal Rh6f6] White mates.} Bg6 {[%emt 0:00:31]} 41. fxg6 {[%emt 0:30:58]} fxg6 {[%emt 0:30:08]} 42. Rxg6 {[%emt 0:00:07][%csl Gg6][%cal Rh6g7]} Rg8 {[%emt 0:00:05]} 43. Rxg8+ {[%emt 0:00:03]} Rxg8+ {[%emt 0:00:06]} 44. Kf2 {[%emt 0:00:01]} Nc8 {[%emt 0:00:32]} 45. Qxf6+ {[%emt 0:00:12]} Rg7 {[%emt 0:00:04]} 46. h5 {[%emt 0:00:07]} h6 {[%emt 0:00:57]} 47. Qxh6+ {[%emt 0:00:06]} Rh7 {[%emt 0:00:04]} 48. Qf8# {[%emt 0:00:07] Weighted Error Value: White=0.08 (flawless) /Black=0.40} 1-0

[Event "FIDE WY-U16 Olympiad 2022"]
[Site "Nakhchivan"]
[Date "2022.10.03"]
[Round "2.7"]
[White "Bakhrillaev, Bakhrom"]
[Black "Ahmad, Khagan"]
[Result "0-1"]
[ECO "E46"]
[WhiteElo "2166"]
[BlackElo "2196"]
[Annotator "TA"]
[PlyCount "166"]
[EventDate "2022.10.02"]
[EventType "team-tourn"]
[EventCountry "AZE"]
[TimeControl "40/5400+30:1800+30"]

{[%evp 20,166,32,32,45,33,45,47,56,41,76,68,79,75,82,28,28,35,29,43,136,126,133,138,200,210,223,233,337,238,273,269,266,249,239,258,249,243,258,252,350,350,410,410,410,410,410,410,619,236,236,236,236,236,236,236,236,236,264,236,283,195,195,195,195,195,195,195,195,195,195,195,195,195,195,195,195,195,195,195,195,0,81,75,69,74,75,0,9,0,195,195,195,195,195,195,195,178,193,164,164,164,164,139,164,164,164,164,164,81,81,81,87,80,80,0,0,-3449,-3029,-29960,-29964,-29963,-29965,-29965,-29966,-29966,-29968,-29967,-29968,-29967,-29968,-29968,-29969,-29974,-29975,-29976,-29977,-29978,-29979,-29979,-29980,-29986,-29987,-29989,-29990,-29990,-29991,-29993,-29994]} 1. d4 {[%emt 0:00:03]} Nf6 {[%emt 0:00:05]} 2. c4 {[%emt 0:00:07]} e6 {[%emt 0:00:05]} 3. Nc3 {[%emt 0:00:07]} Bb4 {[%emt 0:00:03]} 4. e3 {[%emt 0:00:08]} O-O {[%emt 0:00:04]} 5. Bd2 {[%emt 0:00:04]} d5 {[%emt 0:00:27]} 6. Nf3 {[%emt 0:00:08]} c5 {[%emt 0:00:31]} 7. a3 {[%emt 0:00:23]} Bxc3 {[%emt 0:00:04]} 8. Bxc3 {[%emt 0:00:05]} Ne4 {[%emt 0:00:03]} 9. Rc1 {[%emt 0:01:04]} Nxc3 {[%emt 0:01:00]} 10. Rxc3 {[%emt 0:00:07]} cxd4 {[%emt 0:01:44]} 11. Nxd4 {[%emt 0:00:15] The main line 11.Nxd4 scores better than 11.Qxd4.} Nc6 {[%emt 0:00:46] E51: Nimzo-Indian: Rubinstein: 4...0-0 5 Nf3 d5.} 12. cxd5 {[%emt 0:00:08]} Qxd5 {[%emt 0:00:04]} 13. Nxc6 {[%emt 0:00:06]} bxc6 {[%emt 0:00:02] White is slightly better.} 14. Qc2 {[%emt 0:00:50]} Rb8 {[%emt 0:02:04]} 15. b4 {[%emt 0:00:32] [#]} Rd8 $146 {[%emt 0:10:40]} ({Predecessor:} 15... Bb7 16. Rc5 Qd8 17. Bd3 h6 18. O-O Ra8 19. Bh7+ Kh8 20. Be4 a5 21. b5 Rc8 22. Bxc6 Bxc6 23. bxc6 {1-0 (62) Bluebaum,M (2647)-Papasimakopoulos,A (2312) Chess.com INT 2022}) 16. Rc5 $1 {[%emt 0:06:57] Prevents a5.} Qd6 {[%emt 0:00:16][%cal Oa7a5]} 17. Rxc6 $40 {[%emt 0:07:53][%mdl 128] White mounts an attack.} ({White should try} 17. Be2 $16) 17... Qe5 $11 {[%emt 0:00:13]} 18. Rc5 {[%emt 0:00:06]} Qa1+ {[%emt 0:05:01]} 19. Qc1 {[%emt 0:00:10]} Qf6 {[%emt 0:00:04]} ({Better is} 19... Qxc1+ $1 $14 20. Rxc1 Bb7) 20. Be2 $16 {[%emt 0:01:39]} Bb7 {[%emt 0:04:42]} 21. O-O {[%emt 0:01:37]} Qg6 {[%emt 0:00:05]} (21... Rbc8 $16 22. f3 Qe7) 22. f3 $18 {[%emt 0:00:36]} h5 {[%emt 0:00:04]} 23. Rd1 {[%emt 0:10:54]} h4 {[%emt 0:01:32]} (23... Rxd1+ {keeps fighting.} 24. Qxd1 Qf6) 24. Kf2 {[%emt 0:16:06]} h3 {[%emt 0:02:55]} 25. g3 {[%emt 0:00:23]} (25. gxh3 $6 Qf6 $16) 25... Qf6 {[%emt 0:00:47]} 26. Qc3 {[%emt 0:03:53]} Rxd1 {[%emt 0:15:47]} 27. Qxf6 {[%emt 0:00:14]} (27. Bxd1 Qe7 28. Rc7 Qd8) 27... gxf6 {[%emt 0:00:04]} 28. Bxd1 {[%emt 0:00:05][%mdl 4096] Endgame KRB-KRB} Rd8 {[%emt 0:00:02]} 29. Ke1 {[%emt 0:04:17]} ({Don't go for} 29. Rc7 $2 Rd2+ 30. Be2 (30. Ke1 $2 Rxh2 31. Rc4 Rg2 $19) 30... Ba6 $19) 29... Rd3 {[%emt 0:19:22]} 30. Rc7 {[%emt 0:03:26]} Ba6 {[%emt 0:01:11]} 31. Rxa7 {[%emt 0:00:18]} Rxe3+ {[%emt 0:00:10]} 32. Kf2 {[%emt 0:00:14]} Rxa3 {[%emt 0:00:03]} 33. Be2 {[%emt 0:01:04]} Ra1 {[%emt 0:00:09]} (33... Ra4 $142 34. Rxa6 Rxb4) 34. Bxa6 $2 {[%emt 0:00:38] KRB-KR} (34. Rxa6 Rh1 35. Ke3) 34... Ra2+ {[%emt 0:00:09]} 35. Ke3 {[%emt 0:09:31]} Rxh2 {[%emt 0:00:11]} 36. Bd3 {[%emt 0:01:58]} Rh1 {[%emt 0:10:11]} 37. Ra2 {[%emt 0:00:04]} h2 {[%emt 0:00:09]} 38. Re2 {[%emt 0:00:03] Inhibits Re1.} Kf8 {[%emt 0:00:15]} 39. b5 {[%emt 0:05:09] Kd4 is the strong threat.} f5 {[%emt 0:00:16]} 40. b6 {[%emt 0:00:25]} Rb1 {[%emt 0:00:04]} 41. Rxh2 {[%emt 0:30:12]} (41. Bxb1 $2 {perishes.} h1=Q 42. Bd3 Qg1+ 43. Rf2 Qxg3 $19) 41... Rxb6 {[%emt 0:30:03]} 42. Rh1 {[%emt 0:06:40]} Kg7 {[%emt 0:00:23]} 43. Rb1 {[%emt 0:00:19]} Rc6 {[%emt 0:00:10]} 44. Rb7 {[%emt 0:00:27]} Kf6 {[%emt 0:00:10]} 45. Bb5 {[%emt 0:00:57]} Rc3+ {[%emt 0:00:05]} 46. Kf2 {[%emt 0:00:28]} Rc2+ {[%emt 0:00:15]} 47. Kg1 {[%emt 0:00:11]} Rc1+ {[%emt 0:00:04]} 48. Kg2 {[%emt 0:00:28]} Rc2+ {[%emt 0:00:01]} 49. Kh3 {[%emt 0:00:13]} Rc8 {[%emt 0:00:13]} 50. Kg2 {[%emt 0:05:23]} (50. Bd7 $18 Ra8 51. Bb5) 50... Rc2+ $16 {[%emt 0:00:24] [#]} 51. Kf1 $1 {[%emt 0:00:04] aiming for Be8.} Rc1+ {[%emt 0:00:19]} 52. Ke2 $1 {[%emt 0:00:20]} Rc2+ {[%emt 0:00:11]} 53. Ke3 {[%emt 0:00:02]} (53. Kd1 $16 Rg2 54. Be8) 53... Rc3+ $11 {[%emt 0:00:08]} 54. Bd3 {[%emt 0:00:10] Threatens to win with Ra7.} Rc8 $2 {[%emt 0:00:05]} (54... Rc6 $1 $11 55. Rb3 Rc8) 55. Rb6 {[%emt 0:01:18]} Rg8 {[%emt 0:00:09]} 56. Kf4 {[%emt 0:01:22]} Rg5 {[%emt 0:00:29]} 57. Ra6 {[%emt 0:01:15]} Rh5 {[%emt 0:00:16]} 58. Ra5 {[%emt 0:00:58] Strongly threatening g4.} Rh1 {[%emt 0:00:38]} 59. g4 {[%emt 0:01:27]} Rd1 {[%emt 0:02:24]} 60. Be2 {[%emt 0:00:44]} Re1 {[%emt 0:00:26]} 61. Ra2 {[%emt 0:00:51] Hoping for gxf5.} ({Weaker is} 61. gxf5 Rxe2 62. fxe6 fxe6 $11) 61... Rb1 {[%emt 0:01:34]} 62. Ra4 {[%emt 0:02:01] Against Rb4+. And now gxf5 would win.} Rb2 {[%emt 0:01:28]} 63. Bd3 {[%emt 0:00:05][%cal Rg4f5]} fxg4 {[%emt 0:00:08]} 64. fxg4 {[%emt 0:00:06]} (64. Kxg4 $18 {is more deadly.} Ke5 65. f4+ Kf6 66. Kf3) 64... Rf2+ $16 {[%emt 0:00:03]} 65. Kg3 {[%emt 0:00:17]} Rd2 {[%emt 0:00:05]} 66. Rf4+ {[%emt 0:00:09]} Kg5 {[%emt 0:00:34]} 67. Be4 {[%emt 0:00:42]} (67. Rd4 $16) 67... Rd4 $11 {[%emt 0:01:17]} 68. Kf3 $2 {[%emt 0:00:02][%mdl 8192] [#] White is on the road to losing.} (68. Rxf7 $11 Rxe4 69. Rg7+ Kf6 70. Rh7) 68... Rd1 $1 $19 {[%emt 0:00:54] ( -> ...Rf1+)} 69. Rxf7 {[%emt 0:07:06]} Rf1+ {[%emt 0:00:07][%mdl 64] Skewer. Black mates.} 70. Ke3 {[%emt 0:00:06]} Rxf7 {[%emt 0:00:12] KR-KB} 71. Bf3 {[%emt 0:00:03]} Rf4 {[%emt 0:01:06]} 72. Be2 {[%emt 0:01:15]} Rb4 {[%emt 0:00:40]} 73. Bd1 {[%emt 0:00:39]} Kf6 {[%emt 0:02:25]} 74. Bf3 {[%emt 0:02:38]} Ke5 {[%emt 0:00:29]} 75. Be2 {[%emt 0:00:16]} Ra4 {[%emt 0:00:09]} 76. Bd1 {[%emt 0:02:10]} Ra3+ {[%emt 0:00:10]} 77. Kd2 {[%emt 0:01:35]} Kf4 {[%emt 0:00:07]} 78. Be2 {[%emt 0:00:14]} e5 {[%emt 0:00:07][%cal Be6e5,Be5e4,Be4e3][%mdl 32]} 79. Bd1 {[%emt 0:01:52]} e4 {[%emt 0:00:38]} 80. Ke1 {[%emt 0:02:47]} Ke3 {[%emt 0:00:37]} 81. Kf1 {[%emt 0:00:46]} Ra1 {[%emt 0:00:12]} 82. Ke1 {[%emt 0:00:04]} Kd3 {[%emt 0:00:21]} 83. g5 {[%emt 0:00:05]} e3 {[%emt 0:00:03] Weighted Error Value: White=0.24 (precise) /Black=0.21 (precise)} 0-1

[Event "FIDE WY-U16 Olympiad 2022"]
[Site "Nakhchivan"]
[Date "2022.10.03"]
[Round "2.7"]
[White "Badenhorst, Chloe"]
[Black "Kirtadze, Anastasia"]
[Result "0-1"]
[ECO "B43"]
[WhiteElo "1751"]
[BlackElo "1922"]
[Annotator "TA"]
[PlyCount "80"]
[EventDate "2022.10.02"]
[EventType "team-tourn"]
[EventCountry "AZE"]
[TimeControl "40/5400+30:1800+30"]

{[%evp 15,79,25,35,35,32,37,77,4,31,27,147,138,144,132,130,107,112,55,61,57,60,54,93,0,53,28,41,0,4,14,17,9,0,-33,-22,-22,-13,-43,-16,-50,-19,-11,0,21,108,-194,-54,-749,-710,-663,-306,-783,-783,-763,-710,-29989,-29990,-29991,-29992,-29992,-29993,-29993,-2384,-29994,-29995,-29999]} 1. e4 {[%emt 0:00:01]} c5 {[%emt 0:00:14]} 2. Nf3 {[%emt 0:00:05]} e6 {[%emt 0:00:17]} 3. d4 {[%emt 0:00:04]} cxd4 {[%emt 0:00:09]} 4. Nxd4 {[%emt 0:00:06]} a6 {[%emt 0:00:27]} 5. Nc3 {[%emt 0:00:05]} b5 {[%emt 0:00:23]} 6. Bd3 {[%emt 0:00:08]} Bb7 {[%emt 0:01:28]} 7. O-O {[%emt 0:00:06]} Nc6 {[%emt 0:01:55]} 8. Nxc6 {[%emt 0:00:09]} Bxc6 {[%emt 0:00:25]} 9. Re1 {[%emt 0:00:07] 9.Re1 scores better than 9.Qe2. B43: Sicilian: Kan Variation: 5 Nc3.} Ne7 {[%emt 0:06:03]} 10. Bf1 {[%emt 0:00:07]} f6 {[%emt 0:07:28]} 11. Be3 {[%emt 0:07:34]} (11. a4 $16) 11... Ng6 {[%emt 0:01:44]} 12. a4 {[%emt 0:14:54][%cal Ra4b5] [#]} b4 $146 {[%emt 0:02:38] [#]} (12... Bb4 $11) ({Predecessor:} 12... Rb8 13. axb5 axb5 14. Nd5 Kf7 15. f4 Bd6 16. c4 bxc4 17. Bxc4 Rxb2 18. Ra7 Bb8 {½-½ (33) Mchedlishvili,M (2587)-Quparadze,G (2477) Tbilisi 2022}) 13. Nd5 $1 $16 {[%emt 0:00:49][%mdl 512]} Qb8 {[%emt 0:29:08]} (13... exd5 $2 14. exd5 Be7 15. dxc6 dxc6 16. Bc5 Qxd1 17. Raxd1) 14. Nb6 {[%emt 0:22:21]} Ra7 {[%emt 0:00:52]} 15. Nc4 {[%emt 0:00:21]} Rc7 {[%emt 0:09:14]} 16. Nd6+ {[%emt 0:11:14]} (16. Qg4 $16) 16... Bxd6 $14 {[%emt 0:00:19]} 17. Qxd6 {[%emt 0:00:06]} a5 {[%emt 0:02:54]} 18. Bc5 {[%emt 0:04:05]} Kf7 {[%emt 0:03:33][%cal Be8f7,Bf7g8,Bg8h8][%mdl 32]} 19. f4 {[%emt 0:05:05]} ({Better is} 19. Ba6 $16) 19... Re8 {[%emt 0:03:44]} (19... Rhc8 $11) 20. Qd4 {[%emt 0:07:36]} Qa8 {[%emt 0:01:56][%cal Oc6e4]} 21. Rad1 {[%emt 0:02:47]} (21. Bd6 $5 {[%cal Rd6c7]} Qa7 22. Qxa7 Rxa7 23. b3 $14) 21... Kg8 {[%emt 0:01:13]} 22. f5 {[%emt 0:02:53] Black must now prevent Bb6.} Ne5 {[%emt 0:03:20]} 23. Bd6 {[%emt 0:00:52][%csl LRc7,LRe5]} Rcc8 {[%emt 0:02:10]} 24. fxe6 {[%emt 0:09:29]} Rxe6 {[%emt 0:00:30]} 25. b3 {[%emt 0:04:36]} Kh8 {[%emt 0:01:18]} 26. Bd3 {[%emt 0:02:26]} Rce8 {[%emt 0:01:18]} 27. Qc5 {[%emt 0:01:10]} f5 {[%emt 0:04:04][%cal Bf6f5,Bf5e4,Be4e3][%mdl 32]} 28. Bc7 {[%emt 0:01:58]} fxe4 {[%emt 0:02:11]} 29. Bf1 {[%emt 0:00:43] A strong pair of Bishops.} Qb7 {[%emt 0:03:47]} (29... Qc8 $1 $11 {keeps the balance.} 30. Qxa5 (30. Bxa5 Rg6 $17) 30... e3) 30. Bxa5 $2 {[%emt 0:00:29][%mdl 8192]} (30. Qxa5 $16 {is forced if you want to stay better.} d5 31. Ba6 Qa7+ 32. Qb6 Qxb6+ 33. Bxb6) 30... Rg6 {[%emt 0:01:25]} (30... Qb8 $19 31. Rd2 (31. Qxb4 $2 Bb7 $19) 31... Ng4) 31. Kh1 $2 {[%emt 0:00:44][%mdl 8192]} (31. Qxb4 $15 Qa7+ 32. Qb6 (32. Bb6 $2 Qb8 $19) 32... Qxb6+ 33. Bxb6 Nf3+ 34. Kf2 Nxe1 35. Rxe1) 31... e3 $19 {[%emt 0:00:55][%cal Rc6g2]} 32. Re2 {[%emt 0:00:15]} Bf3 {[%emt 0:01:38]} (32... Ng4 $142 33. Kg1 Qb8) 33. Rde1 $2 {[%emt 0:01:31]} (33. Qxe3 Bxe2 34. Qxe2) 33... Bxe2 {[%emt 0:00:24]} 34. Rxe2 {[%emt 0:00:01]} Rf6 {[%emt 0:01:34][%cal Rf6f1]} 35. Kg1 {[%emt 0:00:26]} Ref8 {[%emt 0:02:22][%csl Gf8][%cal Rf6f1]} 36. Re1 {[%emt 0:00:33] [#]} Nf3+ $1 {[%emt 0:01:01][%mdl 512]} 37. gxf3 {[%emt 0:00:22]} Qxf3 {[%emt 0:00:04]} 38. Bc7 {[%emt 0:01:27]} Qf2+ {[%emt 0:00:15]} 39. Kh1 {[%emt 0:00:08]} Qxe1 {[%emt 0:00:08][%cal Re1f1]} 40. Bg3 {[%emt 0:00:54]} Qxf1# {[%emt 0:00:06] Black used his chance.  Weighted Error Value: White=0.69/Black=0.44} 0-1

[Event "FIDE WY-U16 Olympiad 2022"]
[Site "Nakhchivan"]
[Date "2022.10.03"]
[Round "2.8"]
[White "Safarov, Deniel"]
[Black "Potgieter, Edward"]
[Result "1-0"]
[ECO "C88"]
[WhiteElo "1881"]
[BlackElo "1567"]
[Annotator "COMBH"]
[PlyCount "123"]
[EventDate "2022.10.02"]
[EventType "team-tourn"]
[EventCountry "AZE"]
[TimeControl "40/5400+30:1800+30"]

1. e4 {[%emt 0:00:08]} e5 {[%emt 0:00:18]} 2. Nf3 {[%emt 0:00:04]} Nc6 {[%emt 0:00:07]} 3. Bb5 {[%emt 0:00:04]} a6 {[%emt 0:00:08]} 4. Ba4 {[%emt 0:00:04]} Nf6 {[%emt 0:00:26]} 5. O-O {[%emt 0:00:02]} Be7 {[%emt 0:01:13]} 6. Re1 {[%emt 0:00:12]} b5 {[%emt 0:00:17]} 7. Bb3 {[%emt 0:00:01]} O-O {[%emt 0:00:11]} 8. a4 {[%emt 0:00:02]} b4 {[%emt 0:01:38]} 9. d4 {[%emt 0:00:04]} d6 {[%emt 0:01:30]} 10. dxe5 {[%emt 0:00:01]} dxe5 {[%emt 0:00:09]} 11. Qe2 {[%emt 0:03:32]} Bc5 {[%emt 0:23:41]} 12. Be3 {[%emt 0:02:26]} Qe7 {[%emt 0:07:17]} 13. Nbd2 {[%emt 0:06:15]} Bb7 {[%emt 0:06:42]} 14. Rac1 {[%emt 0:08:35]} Bxe3 {[%emt 0:15:39]} 15. Qxe3 {[%emt 0:00:26]} Nd7 {[%emt 0:02:25]} 16. c3 {[%emt 0:03:55]} a5 {[%emt 0:08:04]} 17. Bd5 {[%emt 0:06:42]} Nb6 {[%emt 0:08:58]} 18. Bxc6 {[%emt 0:10:00]} Bxc6 {[%emt 0:00:44]} 19. b3 {[%emt 0:00:23]} Bb7 {[%emt 0:02:44]} 20. cxb4 {[%emt 0:00:48]} axb4 {[%emt 0:00:54]} 21. Qc5 {[%emt 0:01:38]} Qxc5 {[%emt 0:05:33]} 22. Rxc5 {[%emt 0:00:40]} Rac8 {[%emt 0:01:39]} 23. Rec1 {[%emt 0:03:24]} Rfd8 {[%emt 0:02:07]} 24. Rxe5 {[%emt 0:05:05]} c5 {[%emt 0:04:21]} 25. Rexc5 {[%emt 0:08:28]} Rxc5 {[%emt 0:00:50]} 26. Rxc5 {[%emt 0:00:01]} Bxe4 {[%emt 0:03:48]} 27. Rb5 {[%emt 0:01:34]} Bxf3 {[%emt 0:00:51]} 28. gxf3 {[%emt 0:00:37]} Nd5 {[%emt 0:00:44]} 29. a5 {[%emt 0:02:43]} h5 {[%emt 0:00:45]} 30. Nc4 {[%emt 0:02:24]} Nf4 {[%emt 0:00:40]} 31. h4 {[%emt 0:00:21]} Rd1+ {[%emt 0:00:44]} 32. Kh2 {[%emt 0:00:05]} Ra1 {[%emt 0:00:33]} 33. Rxb4 {[%emt 0:01:00]} Nd3 {[%emt 0:00:20]} 34. Rb8+ {[%emt 0:00:10]} Kh7 {[%emt 0:00:05]} 35. b4 {[%emt 0:01:25]} Ra4 {[%emt 0:00:38]} 36. Nb6 {[%emt 0:00:06]} Ra2 {[%emt 0:00:27]} 37. Nd7 {[%emt 0:03:20]} Rxf2+ {[%emt 0:00:54]} 38. Kg3 {[%emt 0:00:24]} Ra2 {[%emt 0:00:24]} 39. Rb6 {[%emt 0:02:21]} f5 {[%emt 0:00:39]} 40. Nf8+ {[%emt 0:02:11]} Kg8 {[%emt 0:00:13]} 41. Ne6 {[%emt 0:30:17]} Ra1 {[%emt 0:31:00]} 42. Rb7 {[%emt 0:01:32]} Rg1+ {[%emt 0:00:33]} 43. Kh2 {[%emt 0:00:12]} Re1 {[%emt 0:00:00]} 44. a6 {[%emt 0:00:00]} Re2+ {[%emt 0:00:00]} 45. Kh3 {[%emt 0:00:00]} Nf2+ {[%emt 0:00:00]} 46. Kg3 {[%emt 0:00:00]} f4+ {[%emt 0:00:00]} 47. Nxf4 {[%emt 0:00:00]} Ra2 {[%emt 0:00:00]} 48. Nxh5 {[%emt 0:00:00]} Nh1+ {[%emt 0:00:00]} 49. Kf4 {[%emt 0:00:00]} Rxa6 {[%emt 0:00:00]} 50. Rxg7+ {[%emt 0:00:00]} Kh8 {[%emt 0:00:00]} 51. Rg2 {[%emt 0:00:00]} Ra4 {[%emt 0:00:00]} 52. Rb2 {[%emt 0:00:00]} Kg8 {[%emt 0:00:00]} 53. Kg5 {[%emt 0:00:00]} Ra3 {[%emt 0:00:00]} 54. Rh2 {[%emt 0:00:00]} Rxf3 {[%emt 0:00:00]} 55. Rxh1 {[%emt 0:00:00]} Rb3 {[%emt 0:00:00]} 56. Kg6 {[%emt 0:00:00]} Rxb4 {[%emt 0:00:00]} 57. Nf6+ {[%emt 0:00:00]} Kh8 {[%emt 0:00:00]} 58. Re1 {[%emt 0:00:00]} Rb8 {[%emt 0:00:00]} 59. Re7 {[%emt 0:00:00]} Rg8+ {[%emt 0:00:00]} 60. Nxg8 {[%emt 0:00:00]} Kxg8 {[%emt 0:00:00]} 61. Rf7 {[%emt 0:00:00]} Kh8 {[%emt 0:00:00]} 62. Rf8# {[%emt 0:00:00]} 1-0